Cogmind - Beta 16.1 @@@ ROGUE MODE // 2026.02.14 @ 15:35:38 // Winter2019/RPGLIKE Player: Toaster Result: Destroyed by H-66 Slayer with Heavy Assault Rifle Performance ------------- Evolutions (5) 2500 Regions Visited (6) 1200 Robots Destroyed (61) 305 Value Destroyed (2062) 2062 Prototype IDs (20) 400 Alien Tech Used (0) 0 Bonus (337) 337 TOTAL SCORE: 6804 Bonus ------- Follower Combat Kills 37 Registered with UFD 300 Cogmind --------- Core Integrity 0/1000 Matter 140/400 Energy 311/315 System Corruption 0% Temperature Cool (23) Movement Flying (80) Ox1 Location -5/Factory Parts ------- > --- POWER (2+1) ------ Neutrino Core > --- PROPULSION (4+1) - Flightbrick (+) > --- UTILITY (3+4) ---- Core Analyzer Precision Energy Filter Improved Particle Charger (+) Rainbow Chip > --- WEAPON (3+1) ----- Heavy Phase Cannon Heavy Phase Cannon > --- INVENTORY (2) ---- Improved Ion Engine Heavy Phase Cannon Peak State ------------ > --- POWER ------------ Neutrino Core > --- PROPULSION ------- Flightbrick > --- UTILITY ---------- Core Analyzer Precision Energy Filter Improved Particle Charger Rainbow Chip > --- WEAPON ----------- Heavy Phase Cannon Heavy Phase Cannon > --- INVENTORY -------- Improved Ion Engine Heavy Phase Cannon [Rating: 83] Favorites ----------- Power Ion Engine Engine Ion Engine Power Core Neutrino Core Propulsion Aluminum Leg Leg Aluminum Leg Flight Unit Flightbrick Utility Light Armor Plating Device Disposable Heat Sink Processor Rainbow Chip Protection Light Armor Plating Weapon Battle Cannon Energy Gun Small Laser Energy Cannon Heavy Phase Cannon Ballistic Gun Light Assault Rifle Ballistic Cannon Battle Cannon Special Weapon Mining Laser Build | -11 -10 -10 -9 -9 -6 -5 ------- Run | Yrd Mat Sub Rec Scr Fac Fac Slots Evolved 8 | 3 2 1 1 . . 1 Power 1 | . . . 1 . . . Propulsion 3 | 1 1 . . . . 1 Utility 2 | 1 1 . . . . . Weapon 2 | 1 . 1 . . . . Parts Attached 37 | 5 12 10 2 1 . 7 Power 3 | 1 . . 1 . . 1 Engine 2 | 1 . . 1 . . . Core 1 | . . . . . . 1 Reactor . | . . . . . . . Propulsion 4 | 2 1 1 . . . . Treads . | . . . . . . . Leg 3 | 2 1 . . . . . Wheel . | . . . . . . . Hover . | . . . . . . . Flight 1 | . . 1 . . . . Utility 14 | . 8 1 1 1 . 3 Device 7 | . 4 . . 1 . 2 Storage . | . . . . . . . Processor 3 | . 1 1 . . . 1 Hackware . | . . . . . . . Protection 4 | . 3 . 1 . . . Artifact . | . . . . . . . Weapon 16 | 2 3 8 . . . 3 Energy Gun 5 | . 3 2 . . . . Energy Cannon 3 | . . . . . . 3 Ballistic Gun 4 | 2 . 2 . . . . Ballistic Cannon 3 | . . 3 . . . . Launcher . | . . . . . . . Special Weapon 1 | . . 1 . . . . Impact Weapon . | . . . . . . . Slashing Weapon . | . . . . . . . Piercing Weapon . | . . . . . . . Special Melee Weapon . | . . . . . . . Unidentified Prototypes 1 | . . . . . . 1 Parts Lost 2 | . . 1 . . 1 . Power . | . . . . . . . Propulsion . | . . . . . . . Utility 2 | . . 1 . . 1 . Weapon . | . . . . . . . Highest Loss Streak 1 | . . 1 . . 1 . To Critical Strikes . | . . . . . . . Average Backups 1 | . . 1 2 1 . 1 Power . | . . . . . . . Propulsion . | . . . . . . . Utility . | . . . . . . . Weapon 1 | . . 1 2 1 . . Tool/Special . | . . . . . . . Unused Backups . | . . . . . . . Power . | . . . . . . . Propulsion . | . . . . . . . Utility . | . . . . . . . Weapon . | . . . . . . . Tool/Special . | . . . . . . . Average Slot Usage (%) 70 | . 98 72 47 50 46 39 Engine 9 | . 12 7 8 11 11 2 Leg 15 | . 27 20 . . . . Flight 2 | . . 1 5 5 5 5 Device 7 | . 9 7 5 5 2 7 Processor 4 | . 3 4 5 5 5 8 Protection 10 | . 17 10 4 5 4 . Energy Gun 5 | . 12 5 . . . . Ballistic Gun 3 | . 13 . . . . . Ballistic Cannon 8 | . . 10 16 16 16 . Peak Build Rating 83 | 5 11 59 62 64 64 83 Average Rating 35 | 4 8 28 60 63 61 78 On Entrance 36 | . 5 10 59 62 64 58 Avg Prop Armor Cover (%) . | . . . . . . . Naked Turns . | . . . . . . . Heaviest Build 43 | 7 14 19 29 29 29 43 Greatest Support 39 | 20 30 30 29 34 34 39 Greatest Overweight (x) 6 | 2 . 6 . . . 1 Average Overweight (x) . | . . . . . . . Largest Inventory Capacity 2 | 1 1 2 2 2 2 2 Average Capacity 1 | 1 1 1 2 2 2 2 Most Carried 2 | . 1 2 2 2 1 2 Average Carried 1 | . . 1 2 1 . 1 Final Capacity 2 | 1 1 2 2 2 2 2 Final Carried 2 | . 1 2 2 1 . 2 Class Distribution -------------------- 55% | Mutant 38% | Gunner 5% | Hacker-Mutant Dominant Class ---------------- Mutant | -10/Materials Mutant | -10/Subcaves Gunner | -9/Recycling Gunner | -9/Scraptown Gunner | -6/Factory Hacker-Mutant | -5/Factory Resources | -11 -10 -10 -9 -9 -6 -5 ----------- Run | Yrd Mat Sub Rec Scr Fac Fac Matter Collected 1818 | 242 256 655 390 10 227 38 Remotely 51 | . 51 . . . . . Salvage Created 1564 | . 882 257 163 . 67 195 Parts 120 | . 55 38 14 . 5 8 Haulers Intercepted 3 | . 2 . . . . 1 Recyclers Shooed 1 | . 1 . . . . . Parts Field Recycled . | . . . . . . . Retrieved Matter . | . . . . . . . Parts Self-Destructed 12 | . . 12 . . . . Prevented . | . . . . . . . Parts Restored . | . . . . . . . Kills | -11 -10 -10 -9 -9 -6 -5 ------- Run | Yrd Mat Sub Rec Scr Fac Fac Combat Hostiles Destroyed 51 | . 19 17 8 . 5 2 Guns 21 | . 19 2 . . . . Cannons 30 | . . 15 8 . 5 2 Classes Destroyed 12 | . 5 3 1 . 2 1 Worker 1 | . . . . . 1 . Hauler 3 | . 2 . . . . 1 Turret 2 | . . 2 . . . . Watcher 4 | . 3 . . . . 1 Swarmer 8 | . 3 4 1 . . . Grunt 20 | . 14 . 1 . 4 1 Duelist 1 | . . . . . 1 . Sentry 6 | . . 1 5 . . . Hunter 1 | . . . . . . 1 Programmer 1 | . . . 1 . . . Artisan 1 | . . 1 . . . . Subdweller 14 | . 2 12 . . . . Best Kill Streak 6 | . 3 6 3 . 3 2 Combat Bots Only 4 | . 3 4 3 . 2 2 Max Kills in Single Turn 2 | . 1 1 1 . 2 1 Gunslinging . | . . . . . . . Exploded . | . . . . . . . Melee . | . . . . . . . Uniques/NPCs Destroyed . | . . . . . . . Combat | -11 -10 -10 -9 -9 -6 -5 -------- Run | Yrd Mat Sub Rec Scr Fac Fac Hostile Shots Fired 390 | . 74 67 23 . 204 22 Missed 175 | . 20 38 7 . 102 8 Hits 215 | . 54 29 16 . 102 14 Melee 2 | . . . . . 2 . Projectile 213 | . 54 29 16 . 100 14 AOE 1 | . . . . . 1 . Critical Strikes 4 | . . 1 1 . 2 . Damage Taken 2984 | . 640 592 240 . 1269 243 Core 2156 | . 471 391 192 . 909 193 Absorbed by Shields . | . . . . . . . Redirected to Core 1968 | . 383 352 175 . 886 172 Core Remaining (%) 72 | 100 . . . 100 18 . Volleys Fired 215 | . 83 72 22 . 23 15 Largest 3 | . 2 3 3 . 3 2 Hottest 180 | . 80 126 99 . 99 180 Shots Fired 468 | . 165 155 50 . 68 30 Gun 180 | . 165 15 . . . . Cannon 282 | . . 134 50 . 68 30 Launcher . | . . . . . . . Special 6 | . . 6 . . . . Kinetic 373 | . 121 134 50 . 68 . Thermal 95 | . 44 21 . . . 30 Explosive . | . . . . . . . Electromagnetic . | . . . . . . . Robot Hit Streak 26 | . 8 26 8 . 6 8 Robot Miss Streak 4 | . 3 3 3 . 4 4 Penetration Max . | . . . . . . . Secondary Targets 3 | . 3 . . . . . Max Gunslinging Chain 1 | . 1 . . . . . Shots Hit Robots 278 | . 108 81 30 . 40 19 Core Hits 112 | . 52 28 13 . 13 6 Critical Kills . | . . . . . . . Critical Parts Destroyed . | . . . . . . . Critical Strikes 13 | . 5 2 1 . 5 . Burn 5 | . 5 . . . . . Blast 8 | . . 2 1 . 5 . Melee Attacks . | . . . . . . . Impact . | . . . . . . . Slashing . | . . . . . . . Piercing . | . . . . . . . Sneak Attacks . | . . . . . . . Combat Hostiles . | . . . . . . . Follow-up Attacks . | . . . . . . . Damage Inflicted 5097 | . 1054 1744 656 . 915 728 Guns 1224 | . 1013 211 . . . . Cannons 3832 | . . 1533 656 . 915 728 Explosions . | . . . . . . . Melee . | . . . . . . . Ramming 41 | . 41 . . . . . Kinetic 3719 | . 615 1533 656 . 915 . Thermal 1337 | . 398 211 . . . 728 Explosive . | . . . . . . . Electromagnetic . | . . . . . . . Impact . | . . . . . . . Slashing . | . . . . . . . Piercing . | . . . . . . . Highest Corruption 1 | . . . 1 . . . Average Corruption 1 | . . . 1 . . . Corruption Purged . | . . . . . . . Corruption Blocked . | . . . . . . . Overload Shots . | . . . . . . . Overflow Damage 101 | . . 51 41 . . 9 Projectiles 101 | . . 51 41 . . 9 Explosions . | . . . . . . . Melee . | . . . . . . . Knockbacks 33 | . 1 14 4 . 14 . Impact 1 | . 1 . . . . . Kinetic 28 | . . 14 3 . 11 . Secondary 4 | . . . 1 . 3 . Self-Inflicted Damage . | . . . . . . . Shots . | . . . . . . . Rammed . | . . . . . . . Targets Rammed 13 | . 13 . . . . . Kicked 13 | . 13 . . . . . Crushed . | . . . . . . . Highest Temperature 308 | . 120 54 197 . 199 308 Average Temperature 65 | . 35 11 82 . 103 69 Received Heat Transfer 771 | . 327 111 87 . 237 9 Siege Activations . | . . . . . . . Martial Activations . | . . . . . . . Shielding Activations . | . . . . . . . Robots Disrupted . | . . . . . . . Combat Hostiles . | . . . . . . . Robots Corrupted . | . . . . . . . Combat Hostiles . | . . . . . . . Parts Fried . | . . . . . . . Impact Corruptions . | . . . . . . . Robots Melted 1 | . . . . . . 1 Combat Hostiles . | . . . . . . . Parts Melted 7 | . 2 1 . . . 4 Heat Transferred 2511 | . 1483 325 . . . 703 Parts Sabotaged . | . . . . . . . Parts Stolen . | . . . . . . . Parts Stripped . | . . . . . . . Power Chain Reactions . | . . . . . . . Alert | -11 -10 -10 -9 -9 -6 -5 ------- Run | Yrd Mat Sub Rec Scr Fac Fac Maximum Alert Level 1 | . . . 1 . 1 . Low Security (%) 92 | 100 100 . 80 . 64 100 Level 1 7 | . . . 19 . 35 . Level 2 . | . . . . . . . Level 3 . | . . . . . . . Level 4 . | . . . . . . . Level 5 . | . . . . . . . High Security . | . . . . . . . Max Security . | . . . . . . . Peak Influence 231 | . 156 . 218 . 231 107 Initial 104 | . . . 104 . . 73 Average 72 | . 50 . 148 . 124 25 Influence Increases 1658 | . 464 245 360 . 432 157 Destroy 0b10 Robot/C 800 | . 340 140 160 . 120 40 Destroy 0b10 Robot/NC 45 | . 25 . 5 . 5 10 Destroy Leader 114 | . 80 . . . 20 14 Allied During Kill 1 | . . . . . 1 . Successful Hack 28 | . 19 . 9 . . . Select Force Hacks 180 | . . . 180 . . . Disable Machine 30 | . . . . . 15 15 Destroy Structure 25 | . . . 6 . 1 18 Lose Combat Pursuer 435 | . . 105 . . 270 60 Influence Decreases 1551 | . 464 27 376 202 281 201 Entered New Map 394 | . . . 114 202 . 78 Time Decay 1027 | . 464 27 262 . 151 123 Search Patrol Dispatched 100 | . . . . . 100 . Lost Part 10 | . . . . . 10 . Lost Ally 20 | . . . . . 20 . Squads Dispatched 9 | . 4 . . . 5 . Investigation 1 | . 1 . . . . . Extermination 1 | . . . . . 1 . Reinforcement 4 | . 3 . . . 1 . Assault . | . . . . . . . Garrison 3 | . . . . . 3 . Intercept . | . . . . . . . Searches Triggered 1 | . . . . . 1 . Construction Impeded . | . . . . . . . Haulers Reinforced 1 | . . . . . 1 . Active Scanning Responses . | . . . . . . . Cargo Convoy Interrupts . | . . . . . . . Stealth | -11 -10 -10 -9 -9 -6 -5 --------- Run | Yrd Mat Sub Rec Scr Fac Fac Distress Signals 5 | . 1 . . . 2 2 Communications Jammed . | . . . . . . . Distress Signals . | . . . . . . . Times Spotted 99 | . 28 21 7 . 34 9 Peak Tracking Total 11 | . 3 3 3 . 11 7 Tactical Retreats 12 | . . 2 . . 9 1 Traps | -11 -10 -10 -9 -9 -6 -5 ------- Run | Yrd Mat Sub Rec Scr Fac Fac Traps Triggered 4 | . 1 3 . . . . Indirectly . | . . . . . . . Trap Hack Attempts . | . . . . . . . Triggered . | . . . . . . . Disarmed . | . . . . . . . Reprogrammed . | . . . . . . . Reused . | . . . . . . . Traps Extracted . | . . . . . . . Installed . | . . . . . . . Triggered . | . . . . . . . Machines | -11 -10 -10 -9 -9 -6 -5 ---------- Run | Yrd Mat Sub Rec Scr Fac Fac Machines Disabled 5 | . . 3 . . 1 1 Max in Single Turn 1 | . . 1 . . 1 1 Machines Repaired . | . . . . . . . Machines Dismantled . | . . . . . . . Machines Sabotaged . | . . . . . . . Overloaded Fab Kills . | . . . . . . . Hacking | -11 -10 -10 -9 -9 -6 -5 --------- Run | Yrd Mat Sub Rec Scr Fac Fac Machines Accessed 23 | . 6 2 12 1 2 . Terminals 12 | . 5 . 6 . 1 . Fabricators . | . . . . . . . Repair Stations . | . . . . . . . Recycling Units 8 | . 1 . 6 . 1 . Scanalyzers . | . . . . . . . Garrison Access . | . . . . . . . Total Hacks 45 | . 13 4 24 1 3 . Successful 34 | . 9 4 20 1 . . Failed 11 | . 4 . 4 . 3 . Catastrophic . | . . . . . . . Database Lockouts . | . . . . . . . Manual 26 | . 8 . 16 . 2 . Terminals 22 | . 11 . 9 . 2 . Fabricators . | . . . . . . . Repair Stations . | . . . . . . . Recycling Units 18 | . 2 . 15 . 1 . Scanalyzers . | . . . . . . . Garrison Access . | . . . . . . . Terminal Hacks 9 | . 3 4 1 1 . . Record 3 | . . 3 . . . . Branch Access Points 1 | . 1 . . . . . Terminal Index 2 | . 1 . 1 . . . Locate Traps 1 | . 1 . . . . . Proto ID Catalog 2 | . . 1 . 1 . . Fabricator Hacks . | . . . . . . . Repair Station Hacks . | . . . . . . . Recycling Unit Hacks 9 | . 2 . 7 . . . Report Inventory 7 | . 1 . 6 . . . Retrieve Components 2 | . 1 . 1 . . . Scanalyzer . | . . . . . . . Garrison Access Hacks . | . . . . . . . Unauthorized Hacks 16 | . 4 . 12 . . . Terminals 10 | . 4 . 6 . . . Botnet 10 | . 4 . 6 . . . Fabricators . | . . . . . . . Repair Stations . | . . . . . . . Recycling Units 6 | . . . 6 . . . Tunnel 6 | . . . 6 . . . Scanalyzers . | . . . . . . . Garrison Access . | . . . . . . . Data Cores Recovered . | . . . . . . . Used . | . . . . . . . Hacking Detections 7 | . 4 . 1 . 2 . Full Trace Events . | . . . . . . . Feedback Events . | . . . . . . . Feedback Blocked . | . . . . . . . Robot Schematics Acquired . | . . . . . . . Robots Built . | . . . . . . . Authchips . | . . . . . . . Time . | . . . . . . . Total Robot Build Rating . | . . . . . . . Part Schematics Acquired . | . . . . . . . Parts Built . | . . . . . . . Authchips . | . . . . . . . Time . | . . . . . . . Total Part Build Rating . | . . . . . . . Part Studies Acquired . | . . . . . . . Parts Repaired . | . . . . . . . Time . | . . . . . . . Parts Recycled . | . . . . . . . Recycled Matter . | . . . . . . . Retrieved Matter . | . . . . . . . Retrieved Components 13 | . 10 . 3 . . . Parts Scanalyzed . | . . . . . . . Part Schematics Acquired . | . . . . . . . Parts Damaged . | . . . . . . . Bothacking | -11 -10 -10 -9 -9 -6 -5 ------------ Run | Yrd Mat Sub Rec Scr Fac Fac Used RIF Installer . | . . . . . . . Robots Hacked . | . . . . . . . Non-combat . | . . . . . . . Combat . | . . . . . . . Robot Hacks Applied . | . . . . . . . Relay Couplers Released . | . . . . . . . Fabnet Peak Effective % . | . . . . . . . Robots Rewired 1 | . . . . . 1 . Allies Hacked . | . . . . . . . Hacks Repelled . | . . . . . . . Allies | -11 -10 -10 -9 -9 -6 -5 -------- Run | Yrd Mat Sub Rec Scr Fac Fac Total Allies 1 | . . . . . 1 . Largest Group 1 | . . . . . 1 . Highest-Rated Group 32 | . . . . . 32 . Highest-Rated Ally 32 | . . . . . 32 . Initial UFD Resources 24 | . . . . . 22 24 Total Orders . | . . . . . . . Ally Attacks 4 | . . . . . 4 . Total Damage 126 | . . . . . 126 . Kills 1 | . . . . . 1 . Allies Corrupted . | . . . . . . . Allies Melted . | . . . . . . . Intel | -11 -10 -10 -9 -9 -6 -5 ------- Run | Yrd Mat Sub Rec Scr Fac Fac Active Infowar (turns) 517 | . 517 . . . . . Optics 517 | . 517 . . . . . Robot Analysis Total . | . . . . . . . Derelict Logs Recovered 4 | . . 2 . 2 . . Drone Launches . | . . . . . . . Drone Recoveries . | . . . . . . . Exploration | -11 -10 -10 -9 -9 -6 -5 ------------- Run | Yrd Mat Sub Rec Scr Fac Fac Turns Passed 6102 | 55 1817 2033 566 841 398 392 Spaces Moved 7254 | 41 1182 1620 1118 2098 712 483 Core 8 | 7 . 1 . . . . Treads . | . . . . . . . Legs 2222 | 34 1182 1006 . . . . Wheels . | . . . . . . . Hover . | . . . . . . . Flight 5024 | . . 613 1118 2098 712 483 Fastest Speed 40 | 50 120 40 40 40 40 40 Average Speed 65 | 112 120 89 40 40 40 61 Slowest Speed 350 | 150 120 350 40 40 40 80 Overloaded Moves . | . . . . . . . Propulsion Burnouts . | . . . . . . . Robots Hopped 22 | . . . 20 . 2 . Potential Cave-ins . | . . . . . . . Cave-ins Triggered . | . . . . . . . Exploration Rate (%) 55 | 3 97 71 99 87 18 14 Regions Visited 6 Branch Regions 3 Pre-discovered Areas 6 | . . . 6 . . . Known Exits Taken . | . . . . . . . Unknown Exits Taken 6 | 1 1 1 1 1 1 . Scrap Searched 8 | . . 3 . 5 . . Spaces Dug . | . . . . . . . Terrain Destroyed 19 | . . 3 6 . 1 9 Melee . | . . . . . . . Projectile 19 | . . 3 6 . 1 9 AOE . | . . . . . . . Terrain Rammed . | . . . . . . . Walls Destroyed . | . . . . . . . Machines Disabled . | . . . . . . . Actions | -11 -10 -10 -9 -9 -6 -5 --------- Run | Yrd Mat Sub Rec Scr Fac Fac Total 8135 | 47 1437 2055 1176 2099 771 550 Wait 529 | 2 114 313 34 . 31 35 Move 7206 | 40 1181 1619 1079 2097 707 483 Hop 20 | . . . 18 . 2 . Pick Up 5 | . 1 4 . . . . Fast Attach 34 | 5 11 6 2 1 1 8 Attach 3 | . 1 2 . . . . Detach 12 | . 5 3 . . . 4 Swap 4 | . 1 3 . . . . Drop 24 | . 7 9 1 1 1 5 Fire 215 | . 83 72 22 . 23 15 Melee . | . . . . . . . Ram . | . . . . . . . Kick 13 | . 13 . . . . . Crush . | . . . . . . . Escape Stasis . | . . . . . . . Rewire 2 | . . . . . 2 . Trap . | . . . . . . . Miscellaneous 68 | . 20 24 20 . 4 . Route ------- -11/Scrapyard -10/Materials (discovered 5 exits: [*Mat x3] / *Min / *Sub) -10/Subcaves (discovered 3 exits: [*Mat] / *Rec / *Scr) -9/Recycling (discovered 2 exits: [*Fac] / *Scr) -9/Scraptown (discovered 2 exits: *Fac x2) -6/Factory (discovered 3 exits: [*Fac x2] / [*Low]) -5/Factory History --------- Turn | Location | Event 1 | -11/Scrapyard | Upgraded with Propulsion slot (x1) 1 | -11/Scrapyard | Upgraded with Utility slot (x1) 1 | -11/Scrapyard | Upgraded with Weapon slot (x1) 8 | -11/Scrapyard | Discovered new exit (range 15) 56 | -11/Scrapyard | Entered Materials 197 | -10/Materials | Discovered new exit (range 12) 302 | -10/Materials | Build established: Mutant 552 | -10/Materials | Discovered new exit (range 18) 756 | -10/Materials | Derelicts attacked the area 832 | -10/Materials | Reached level 2 859 | -10/Materials | Upgraded with Utility slot (x1) 975 | -10/Materials | Identified exit to Mines 1003 | -10/Materials | Discovered new exit (range 6) 1189 | -10/Materials | Discovered new exit (range 8) 1322 | -10/Materials | Discovered new exit (range 7) 1586 | -10/Materials | Upgraded with Propulsion slot (x1) 1873 | -10/Materials | Entered Subcaves 1874 | -10/Subcaves | Approached by a straggling Scientist 1875 | -10/Subcaves | Reached level 3 1960 | -10/Subcaves | Visited 4L-MR0's lab 1983 | -10/Subcaves | Found Rainbow Chip 2397 | -10/Subcaves | Attached Rainbow Chip, gained temporary slots: Power, Propulsion, Utility, Weapon 2544 | -10/Subcaves | Learned Materials non-interactive machine intel 2782 | -10/Subcaves | Shifting Twisted Machinery released Barrage Gun 2801 | -10/Subcaves | Discovered new exit (range 11) 2804 | -10/Subcaves | Shifting Twisted Machinery released Sub. Monowheel 3280 | -10/Subcaves | Learned 4 Materials zone layouts 3358 | -10/Subcaves | Upgraded with Weapon slot (x1) 3433 | -10/Subcaves | A Subdweller sparked back to life 3475 | -10/Subcaves | Found Flightbrick 3477 | -10/Subcaves | Attached Flightbrick, gained temporary slots: Utility x3 3489 | -10/Subcaves | Shifting Twisted Machinery released Battle Cannon 3507 | -10/Subcaves | Shifting Twisted Machinery released Sub. Laser 3593 | -10/Subcaves | Ambushed by Subdwellers from Twisted Machinery 3666 | -10/Subcaves | Build established: Gunner 3796 | -10/Subcaves | Visited Clippyterm 3798 | -10/Subcaves | Learned Factory stockpile data 3871 | -10/Subcaves | Discovered new exit (range 12) 3906 | -10/Subcaves | Entered Recycling 3908 | -9/Recycling | Reached level 4 3913 | -9/Recycling | Upgraded with Power slot (x1) 4062 | -9/Recycling | Discovered new exit (range 12) 4099 | -9/Recycling | Scanned before Scraplab entrance 4245 | -9/Recycling | Reached level 5 4468 | -9/Recycling | Entered Scraplab 4471 | -9/Recycling | Discovered new exit (range 3) 4472 | -9/Recycling | Entered Scraptown 4472 | -9/Scraptown | System corruption cleaned by C-Scrubber 4548 | -9/Scraptown | Visited Cyclists 4566 | -9/Scraptown | Visited TADAMA 4585 | -9/Scraptown | Scanned Subdweller tech in exchange for log data 4586 | -9/Scraptown | Learned Research interactive machine intel 4587 | -9/Scraptown | Learned Factory security intel 4592 | -9/Scraptown | Discovered new exit (range 13) 4609 | -9/Scraptown | Heard Great Nut preacher, LISTEN AND RECITE! 4713 | -9/Scraptown | Visited CPS Storage 4723 | -9/Scraptown | Visited Red Mages 4745 | -9/Scraptown | Visited Assassins FH 4760 | -9/Scraptown | Visited Awakened 4769 | -9/Scraptown | Visited Fellowship of the Rings 4863 | -9/Scraptown | Visited UFD Registry 4863 | -9/Scraptown | Registered with UFD as "Hellfunk" 4897 | -9/Scraptown | Guru changed UFD alias to "Bulletwalker" 4953 | -9/Scraptown | Visited Scrap Suit Storage 4962 | -9/Scraptown | Visited Junk Cannon Lab 4997 | -9/Scraptown | Received an X-ray algorithm 5026 | -9/Scraptown | Visited LU-1G1's Boring Crew 5033 | -9/Scraptown | Visited Derelict Rescue Squad 5043 | -9/Scraptown | Visited Science Guys 5060 | -9/Scraptown | Visited Research Penetration Think Tank 5068 | -9/Scraptown | Visited Science Testing Area 5076 | -9/Scraptown | Visited Cartography Club 5144 | -9/Scraptown | Discovered new exit (range 5) 5313 | -9/Scraptown | Entered Factory 5315 | -6/Factory | Reached level 6 5348 | -6/Factory | Discovered new exit (range 16) 5382 | -6/Factory | Garrison activated, responded to threat 5386 | -6/Factory | Discovered new exit (range 3) 5409 | -6/Factory | Reached level 7 5425 | -6/Factory | Core integrity fell below 50% 5497 | -6/Factory | Core integrity fell below 20% 5553 | -6/Factory | Discovered new exit (range 8) 5663 | -6/Factory | Search patrols dispatched 5711 | -6/Factory | Entered another Factory area 5712 | -5/Factory | Core integrity fell below 50% 5712 | -5/Factory | Core integrity fell below 20% 5713 | -5/Factory | Reached level 8 5739 | -5/Factory | Upgraded with Propulsion slot (x1) 6059 | -5/Factory | Build established: Hacker-Mutant 6103 | -5/Factory | Destroyed by H-66 Slayer with Heavy Assault Rifle Last Messages --------------- 05951_ Destroyed Imp. Hover Unit. 05957_ W-25 Informer destroyed. 05962_ Acquired 38 matter. 05970_ U-05 Engineer builds a Wall. 05997_ K-01 Serf cleans the Subcomponent Replicator. 06020_ ALERT: All DSF locations entering lockdown mode. 06023_ Destroyed Imp. Hover Unit. 06088_ Slug penetrates Wall. 06088_ Penetrated by Slug. 06089_ Recycling Unit disabled. 06091_ U-05 Engineer builds a Wall. 06095_ Penetrated by Slug. 06098_ Targeting Computer melted. 06098_ Gauss Rifle melted. 06098_ Targeting Computer melted. 06098_ Hvy. Assault Rifle melted. 06098_ H-66 Slayer destroyed. 06100_ Penetrated by Slug. 06101_ G-50 Soldier destroyed. 06102_ Penetrated by Slug. Map ----- +----------------------------------------------------+ | ?????????????????????????????????????????????????? | | ?????????????????????????????????????????????????? | | ?????????????????????????????????????????????????? | | ?????????????????????????????????????????????????? | | ?????????????????????????????????????????????????? | | ?????????????????????????????????????????????????? | | ?????????????????????????????????????????????????? | | ?????????????????????????????????????????????????? | | ?????????????????????????????????????????????????? | | ?????????????????????????????????????????????????? | | ?????????????????????????????????????????????????? | | ?????????????????????????????????????????????????? | | ?????????????????????????????????????????????????? | | ?????????????????????????????????????????????????? | | ?????????????????????????????????????????????????? | | ?????????????????????????????????????????????????? | | ?????????????????????????????????????????????????? | | ?????????????????????????????????????????????????? | | ?????????????????????????????????????????????????? | | ?????????????????????????????????????????????????? | | ?????????????????????????????????????????????????? | | ??????????????##############?????????????????????? | | ?????????????## #?????????????????????? | | ?????????????## #?????????????????????? | | ?????????? = [ #?????????????????????? | | ?????????? % @ #?????????????????????? | | ?????????? [ " " #?????????????????????? | | ?????????? "Y" [#?????????????????????? | | ????????????? """ """ " "=%####################### | | ????????????????" """ u * | | ????????????? """ """ | | ???????????? | | ?????????? ? | | ??????????? ? ? | | ???????????# ###############+##### #######+### | | ???????????? ???????????# # #??# | | ???????????? ?????????????# # #??# | | ???????????????????????????# # #??# | | ???????????????????????????# # #??# | | ???????????????????????????# # #??# | | ???????????????????????????# # #??# | | ???????????????????????????# # #### | | ???????????????????????????# / + | | ???????????????????????????#+##/####+###### | | ?????????????????????????????? ???# #????#####+## | | ?????????????????????????????? ???# #????# | | ?????????????????????????????? ???# #????# | | ???????????????????? ????? ???# #????# " | | ??????????????????? ? ??## ##???# " | | ??????????????????? ### #???# | +----------------------------------------------------+ Best States ------------- Heat Dissipation 85 Coolant Potential 65 Energy Generation 19 Energy Capacity 415 Matter Stores 300 Matter Capacity 400 Sight Range 18 Robot Scan Range 14 Terrain Scan Density 10 Armor Coverage 300 Evasion (%) 62 Core Analysis 6 Energy Filtering 50 Particle Charging 20 Offensive Hacking 10 Defensive Hacking 10 Item Schematics ----------------- None Robot Schematics ------------------ None Fabricated ------------ Nothing Repaired ---------- Nothing Studied --------- None Alien Tech Used ----------------- None Achievements -------------- None Challenges ------------ None RPGLIKE | -11 -10 -10 -9 -9 -6 -5 --------- Run | Yrd Mat Sub Rec Scr Fac Fac Levels Raised 7 | . 1 1 2 . 2 1 XP Earned 14278 | 3000 2080 1700 2730 650 2293 1825 XP Spent 13430 | 1750 2500 1300 1050 600 905 5325 Upgrades 46 | 4 4 2 5 1 10 20 Power Slot 1 | . . . 1 . . . Propulsion Slot 3 | 1 1 . . . . 1 Utility Slot 2 | 1 1 . . . . . Weapon Slot 2 | 1 . 1 . . . . Core Integrity 8 | . . . . . 8 . Heat Dissipation 10 | . . . 1 . . 9 Matter Storage 2 | . . . . . 2 . Mass Support 3 | . . . 1 1 . 1 Inventory Capacity 2 | 1 . 1 . . . . Sensor Range 7 | . . . . . . 7 Ranged Accuracy 2 | . 2 . . . . . Hack Attack % 2 | . . . 1 . . 1 Hack Defense % 2 | . . . 1 . . 1 Protomatter Created 640 | . 169 213 142 . 58 58 Integrity Restored 1417 | . 397 508 419 . 93 . Core 1147 | . 391 416 247 . 93 . Parts 270 | . 6 92 172 . . . Protomatter Decayed 253 | . 40 156 . . 57 . Game ------ Seed GrapheneDirtySegregator Manual? 0 Play Time 01:13:04 Cumulative 173.1 hours Start 2026.02.14 @ 14:12:48 End 2026.02.14 @ 15:35:38 Sessions 1 Manual Loads 0 Difficulty Rogue Special Mode Winter2019/RPGLIKE Game No. 78 Rogue 74 Adventurer 4 Explorer 0 Win Type - Total 4 Types 3/0/1/0/0/0/0/0/0/0 Lore% 69 Gallery% 49 Achievement% 39 Wizard Run 0 Options --------- Layout 0 ASCII 0 Keyboard 0 Movement Arrows Keybinds 0 Fullscreen 2 Font 32/SmallcapsGlow Map View 88x55 Zoom Use 0% Tactical HUD 1 Map Filters NONE Filters NONE Steam 1 RUN: fc19bb35-9892-4d03-a338-8104cab6d1cf